bitfinex-derivatives/quotes_SOLF0:USTF0_20240913
["timestamp","ask_amount","ask_price","bid_price","bid_amount"]
[1726223109871,12.8587,133.45,133.41,11.52]
[1726223110272,12.8587,133.45,133.32,1.3537]
[1726223110571,12.8587,133.45,133.4,11.52]
[1726223110878,3.3726,133.43,133.4,11.52]
[1726223111068,12.8587,133.45,133.4,11.52]
[1726223111969,1.3387,133.45,133.43,11.52]
[1726223112276,1.3387,133.45,133.44,11.52]
[1726223112670,1.4001,133.46,133.44,11.52]
[1726223112870,1.4001,133.46,133.45,11.52]
[1726223113876,1.4001,133.46,133.45,14.8918]
[1726223114269,3.3709,133.49,133.45,14.8918]
[1726223114477,3.3709,133.49,133.47,11.52]
[1726223114875,3.3711,133.48,133.47,11.52]
[1726223116873,3.3709,133.49,133.47,11.52]
[1726223117574,3.3711,133.48,133.47,11.52]
[1726223117975,3.3715,133.47,133.37,1.316]
[1726223118169,14.2712,133.5,133.45,11.52]
[1726223119581,3.3716,133.46,133.45,11.52]
[1726223122982,3.3714,133.47,133.45,11.52]
[1726223123287,11.52,133.49,133.45,11.52]
[1726223124387,3.3716,133.47,133.45,11.52]
[1726223124981,3.3716,133.47,133.43,3.3722]
[1726223125182,3.3716,133.47,133.44,11.52]
[1726223125481,3.3716,133.46,133.44,11.52]
[1726223125677,11.52,133.48,133.42,3.3725]
[1726223125880,11.52,133.48,133.43,11.52]
[1726223126078,3.3718,133.46,133.43,11.52]
[1726223126386,3.3718,133.46,133.43,14.8922]
[1726223126574,2.7512,133.5,133.44,11.52]
[1726223126773,11.52,133.49,133.44,11.52]
[1726223127179,3.3712,133.48,133.44,14.8919]
[1726223127770,3.3714,133.47,133.44,14.8919]
[1726223129979,2.7512,133.5,133.46,11.52]
[1726223130289,1.3128,133.5,133.48,11.52]
[1726223131480,1.3128,133.5,133.48,14.891]
[1726223132190,1.3128,133.5,133.48,11.52]
[1726223132577,1.3128,133.5,133.42,3.7735187]
[1726223132882,1.3128,133.5,133.42,11.52]
[1726223132883,11.52,133.47,133.42,11.52]
[1726223133085,3.372,133.45,133.42,11.52]
[1726223133286,11.52,133.44,133.37,1.316]
[1726223133481,11.52,133.44,133.36,1.3766]
[1726223133482,3.3727,133.42,133.39,11.52]
[1726223134791,3.3727,133.42,133.39,14.8933]
[1726223136179,3.3727,133.42,133.39,3.3733]
[1726223136582,3.3727,133.42,133.38,3.3735]
[1726223136894,3.3729,133.41,133.38,3.3735]
[1726223138093,3.3727,133.42,133.38,3.3735]
[1726223138494,1.3305,133.44,133.37,18.0]
[1726223139797,3.3725,133.43,133.39,3.3732]
[1726223140098,1.3305,133.44,133.39,3.3732]
[1726223140598,3.3725,133.43,133.39,3.3732]
[1726223141097,3.3725,133.43,133.4,3.3729]
[1726223145299,1.3305,133.44,133.37,18.0]
[1726223145691,3.3725,133.43,133.39,3.3731]
[1726223145995,3.3725,133.43,133.37,18.0]
[1726223146194,3.3725,133.43,133.39,3.3731]
[1726223146401,1.3305,133.44,133.37,18.0]
[1726223146799,3.3727,133.42,133.39,3.3732]
[1726223147906,3.3728,133.42,133.38,3.3734]
[1726223148402,3.3729,133.41,133.38,3.3734]
[1726223149594,3.3732,133.4,133.35,19.3778]
[1726223149994,3.373,133.41,133.38,3.3735]
[1726223150196,1.3305,133.44,133.38,3.3735]
[1726223150405,18.0,133.43,133.35,19.3778]
[1726223150597,3.3732,133.4,133.37,3.3737]
[1726223151003,3.3735,133.39,133.35,18.0]
[1726223151303,3.3735,133.39,133.36,3.374]
[1726223152297,20.6835,133.43,133.36,3.374]
[1726223153406,3.3733,133.39,133.36,3.374]
[1726223156904,3.3732,133.4,133.37,3.3738]
[1726223158198,3.3734,133.39,133.36,3.374]
[1726223158406,3.3734,133.39,133.36,14.894]
[1726223161396,3.3732,133.4,133.37,3.3738]
[1726223162607,2.6835,133.43,133.38,14.8934]
[1726223162608,3.3729,133.41,133.38,14.8934]
[1726223162803,14.2035,133.43,133.38,11.52]
[1726223163010,1.3305,133.44,133.41,11.52]
[1726223163211,4.7026,133.44,133.41,14.8927]
[1726223164004,1.3305,133.44,133.42,3.3725]
[1726223164204,15.3,133.47,133.41,11.52]
[1726223165006,15.3,133.47,133.41,14.8927]
[1726223165007,3.3722,133.44,133.41,14.8927]
[1726223165404,3.78,133.47,133.35,1.4491]
[1726223165610,11.52,133.42,133.38,11.52]
[1726223165914,14.8927,133.42,133.39,3.3733]
[1726223166115,12.8999,133.43,133.39,11.52]
[1726223166316,1.3799,133.43,133.4,11.52]
[1726223166511,4.7523,133.43,133.4,14.893]
[1726223166820,160.74698413,133.49,133.41,11.52]
[1726223166821,11.52,133.45,133.41,11.52]
[1726223167908,3.3722,133.44,133.41,14.8928]
[1726223168114,3.3722,133.44,133.41,11.52]
[1726223168517,3.3722,133.44,133.41,14.8928]
[1726223171520,3.3719,133.45,133.42,3.3725]
[1726223174827,3.3723,133.44,133.41,14.8927]
[1726223176227,3.3719,133.45,133.42,3.3725]
[1726223177429,3.3717,133.46,133.42,11.52]
[1726223177731,3.3717,133.46,133.43,11.52]
[1726223177931,3.3717,133.46,133.43,14.8922]
[1726223179532,3.3714,133.47,133.44,3.372]
[1726223180226,16.2712,133.48,133.45,3.3718]
[1726223180426,4.7512,133.48,133.46,11.52]
[1726223182226,3.3713,133.47,133.44,14.892]
[1726223182931,4.7511,133.48,133.45,3.3718]
[1726223183723,1.3799,133.48,133.45,3.3718]
[1726223183928,1.3799,133.48,133.44,11.52]
[1726223184128,1.3799,133.48,133.46,11.52]
[1726223184927,1.3799,133.48,133.46,14.8914]
[1726223186934,4.7512,133.48,133.46,11.52]
[1726223187235,1.3799,133.48,133.4,5.22055538]
[1726223187531,3.3715,133.47,133.44,14.8919]
[1726223187734,1.3799,133.48,133.44,11.52]
[1726223187931,4.7511,133.48,133.45,3.3717]
[1726223192233,4.7511,133.48,133.45,14.8917]
[1726223192833,3.3713,133.47,133.45,11.52]
[1726223193233,3.3713,133.47,133.44,14.892]
[1726223194226,12.8999,133.48,133.44,14.892]
[1726223194439,3.3716,133.46,133.43,14.8922]
[1726223195141,3.3718,133.45,133.43,14.8922]
[1726223195535,11.52,133.47,133.43,14.8922]
[1726223195741,3.3717,133.46,133.43,14.8922]
[1726223196832,3.3716,133.47,133.44,3.3721]
[1726223197139,3.3716,133.47,133.44,11.52]
[1726223197334,3.3716,133.47,133.45,3.3718]
[1726223198833,3.3716,133.47,133.44,14.892]
[1726223201043,16.2711,133.48,133.45,3.3718]
[1726223202143,3.3714,133.47,133.45,3.3718]
[1726223203447,4.7511,133.48,133.45,14.8918]
[1726223206645,3.3709,133.49,133.46,14.8914]
[1726223207241,3.3707,133.5,133.47,3.3711]
[1726223207447,3.3707,133.5,133.47,14.8911]
[1726223210951,3.3707,133.5,133.47,414.8911]
[1726223211147,2.7007,133.52,133.48,14.891]
[1726223211455,1.3921,133.52,133.5,11.52]
[1726223211650,3.37,133.53,133.5,14.8905]
[1726223213341,3.3701,133.52,133.5,11.52]
[1726223214549,3.75327933,133.55,133.5,11.52]
[1726223214755,3.3699,133.53,133.5,14.8906]
[1726223214948,11.52,133.54,133.5,11.52]
[1726223215950,11.52,133.54,133.47,400.0]
[1726223216150,11.52,133.54,133.49,11.52]
[1726223216748,3.3702,133.52,133.49,14.8908]
[1726223216953,3.3702,133.52,133.5,400.0]
[1726223217554,3.68188947,133.55,133.51,11.52]
[1726223217860,11.52,133.56,133.51,11.52]
[1726223218050,3.3697,133.54,133.51,14.8902]
[1726223218952,3.3697,133.54,133.51,11.52]
[1726223220465,3.3697,133.54,133.51,14.8902]
[1726223225152,4.1751,133.57,133.5,400.0]
[1726223225451,4.1751,133.57,133.53,11.52]
[1726223225656,3.3694,133.55,133.53,11.52]
[1726223234086,3.3694,133.55,133.52,14.8899]
[1726223236185,3.3696,133.54,133.52,14.8899]
[1726223236388,3.3696,133.54,133.51,3.3702]
[1726223236594,15.6951,133.57,133.51,11.52]
[1726223236887,3.3695,133.55,133.51,11.52]
[1726223237090,3.3695,133.55,133.52,3.3699]
[1726223237487,41.48306563,133.63,133.54,11.52]
[1726223237789,2.8597,133.62,133.57,11.52]
[1726223238086,2.8597,133.62,133.48,6.742]
[1726223238087,2.8597,133.62,133.59,14.8882]
[1726223238291,2.8597,133.62,133.48,6.742]
[1726223238292,14.3797,133.62,133.48,6.742]
[1726223238587,14.3797,133.62,133.58,11.52]
[1726223238785,3.368,133.61,133.58,11.52]
[1726223239380,11.52,133.6,133.55,11.52]
[1726223239691,11.52,133.59,133.53,3.3696]
[1726223239875,3.3689,133.57,133.54,11.52]
[1726223240280,11.52,133.59,133.54,14.8894]
[1726223240684,3.3686,133.58,133.54,14.8894]
[1726223241189,3.3685,133.59,133.55,14.8891]
[1726223242885,3.3685,133.59,133.56,3.369]
[1726223243885,3.3685,133.59,133.55,14.8892]
[1726223244389,12.9604,133.61,133.55,14.8892]
[1726223245486,12.9604,133.61,133.56,3.369]
[1726223245693,3.3684,133.59,133.56,3.369]
[1726223245992,3.3684,133.59,133.55,11.52]
[1726223246191,3.3684,133.59,133.55,14.8892]
[1726223246392,3.3686,133.58,133.55,14.8892]
[1726223247190,3.3686,133.58,133.55,3.3692]
[1726223247980,3.3689,133.57,133.54,14.8895]
[1726223248184,11.52,133.59,133.54,11.52]
[1726223248586,3.3688,133.57,133.54,14.8893]
[1726223249092,11.52,133.58,133.45,138.10638347]
[1726223249295,11.52,133.57,133.52,11.52]
[1726223249501,12.971,133.57,133.52,11.52]
[1726223249686,12.971,133.57,133.53,11.52]
[1726223249883,12.971,133.57,133.53,14.8896]
[1726223250099,1.451,133.57,133.54,11.52]
[1726223250296,1.451,133.57,133.55,3.3692]
[1726223250999,11.52,133.6,133.55,3.3692]
[1726223251000,12.9384,133.6,133.55,3.3692]
[1726223251187,12.9384,133.6,133.55,11.52]
[1726223251495,1.4184,133.6,133.55,11.52]
[1726223252094,4.7866,133.6,133.56,3.3689]
[1726223252396,1.4184,133.6,133.56,3.3689]
[1726223252596,3.3684,133.59,133.55,14.8893]
[1726223252791,3.3684,133.59,133.55,11.52]
[1726223253794,3.3684,133.59,133.56,14.889]
[1726223253989,1.4184,133.6,133.56,11.52]
[1726223255189,3.3683,133.59,133.56,14.889]
[1726223255388,3.3683,133.59,133.56,11.52]
[1726223256597,3.3683,133.59,133.55,14.8891]
[1726223257889,3.3686,133.58,133.55,3.3691]
[1726223258094,12.9384,133.6,133.56,3.369]
[1726223258397,1.4184,133.6,133.56,3.369]
[1726223258693,4.7866,133.6,133.56,3.369]
[1726223259798,3.3683,133.59,133.56,3.369]
[1726223260595,3.3683,133.59,133.5,2.7257]
[1726223260596,3.3696,133.54,133.51,3.3701]
[1726223260800,11.52,133.57,133.5,2.7257]
[1726223260997,11.52,133.57,133.53,11.52]
[1726223261501,11.52,133.59,133.54,11.52]
[1726223261691,3.3692,133.56,133.52,3.37]
[1726223261894,3.3692,133.56,133.53,11.52]
[1726223262692,3.3692,133.56,133.53,14.8898]
[1726223262994,3.3687,133.58,133.54,11.52]
[1726223263798,3.3687,133.58,133.54,14.8894]
[1726223263993,3.3687,133.58,133.55,11.52]
[1726223265002,3.3683,133.59,133.55,14.8892]
[1726223266800,3.3686,133.58,133.55,11.52]
[1726223268311,3.3686,133.58,133.55,14.8893]
[1726223268506,3.3684,133.59,133.55,14.8893]
[1726223270512,4.7866,133.6,133.57,11.52]
[1726223270814,1.4184,133.6,133.59,11.52]
[1726223272514,4.7865,133.6,133.57,14.8887]
[1726223273106,4.7865,133.6,133.57,11.52]
[1726223273421,3.3683,133.59,133.57,11.52]
[1726223275209,3.3683,133.59,133.56,14.8889]
[1726223275410,1.4184,133.6,133.56,11.52]
[1726223276117,3.3683,133.59,133.56,11.52]
[1726223276917,1.4184,133.6,133.5,2.7257]
[1726223277309,3.3687,133.58,133.55,11.52]
[1726223278307,3.3688,133.57,133.55,11.52]
[1726223281315,3.3686,133.58,133.55,11.52]
[1726223281814,3.3686,133.58,133.55,14.8893]
[1726223285016,3.3686,133.58,133.56,11.52]
[1726223288522,3.3684,133.59,133.56,11.52]
[1726223291021,3.3684,133.59,133.56,14.889]
[1726223291410,3.3682,133.6,133.58,11.52]
[1726223292225,3.3678,133.61,133.58,11.52]
[1726223292428,3.3678,133.61,133.58,14.8885]
[1726223292617,3.3678,133.61,133.58,11.52]
[1726223296723,3.3676,133.62,133.59,11.52]
[1726223296917,2.7918,133.65,133.59,11.52]
[1726223297120,14.3118,133.65,133.59,11.52]
[1726223297823,18.07987022,133.65,133.59,11.52]
[1726223298019,11.52,133.63,133.59,11.52]
[1726223298818,3.3677,133.62,133.59,11.52]
[1726223299226,3.3677,133.62,133.59,14.8883]
[1726223299428,3.3673,133.63,133.59,14.8883]
[1726223301529,3.3673,133.63,133.6,3.368]
[1726223302027,3.3673,133.63,133.6,14.888]
[1726223303023,3.3672,133.64,133.6,14.888]
[1726223307326,3.3673,133.63,133.6,14.888]
[1726223307921,3.3672,133.64,133.61,3.3678]
[1726223313427,3.3672,133.64,133.61,14.8878]
[1726223315636,5.20207022,133.65,133.62,14.8873]
[1726223316227,8.56897022,133.65,133.62,11.52]
[1726223317035,4.8009,133.65,133.62,11.52]
[1726223318338,1.434,133.65,133.61,14.8877]
[1726223318535,3.3671,133.64,133.61,14.8877]
[1726223319841,1.434,133.65,133.62,3.3675]
[1726223320435,7.10574072,133.66,133.62,14.8875]
[1726223320635,3.73914072,133.66,133.61,3.3677]
[1726223320837,3.73914072,133.66,133.55,2.677]
[1726223321141,3.3669,133.65,133.61,11.52]
[1726223321441,3.73914072,133.66,133.62,11.52]
[1726223321746,3.3666,133.66,133.64,11.52]
[1726223322445,3.74522567,133.67,133.64,11.52]
[1726223322948,3.3667,133.66,133.64,11.52]
[1726223326145,7.11162567,133.67,133.64,11.52]
[1726223326646,3.74522567,133.67,133.64,11.52]
[1726223327245,3.74522567,133.67,133.56,6.7381]
[1726223327447,15.26522567,133.67,133.62,11.52]
[1726223328040,3.3669,133.65,133.62,11.52]
[1726223329050,3.3667,133.66,133.62,14.8874]
[1726223330644,3.3669,133.65,133.62,14.8874]
[1726223330846,3.3669,133.65,133.62,11.52]
[1726223331545,3.3669,133.65,133.62,14.8874]
[1726223334753,3.3669,133.65,133.63,3.3673]
[1726223335452,3.3667,133.66,133.63,3.3673]
[1726223336646,3.3667,133.66,133.64,11.52]
[1726223337745,3.3664,133.67,133.64,11.52]
[1726223337951,3.3664,133.67,133.64,14.887]
[1726223341152,3.3664,133.67,133.64,11.52]
[1726223342257,3.3664,133.67,133.64,14.887]
[1726223344050,3.3663,133.67,133.64,11.52]
[1726223344657,3.3663,133.67,133.64,14.8869]
[1726223345458,8.4806607,133.68,133.64,14.8869]
[1726223345962,8.4806607,133.68,133.65,14.8868]
[1726223347359,3.3663,133.67,133.65,11.52]
[1726223347754,8.4805607,133.68,133.65,11.52]
[1726223349356,8.4805607,133.68,133.65,14.8867]
[1726223350064,3.7052607,133.68,133.65,14.8867]
[1726223351466,7.0713607,133.68,133.65,14.8867]
[1726223352555,3.7052607,133.68,133.64,11.52]
[1726223353868,7.0714607,133.68,133.65,3.3667]
[1726223356077,3.3664,133.67,133.64,3.3669]
[1726223356375,3.3664,133.67,133.64,14.8869]
[1726223357476,11.52,133.67,133.63,2000.0]
[1726223358078,11.52,133.67,133.63,2003.3672]
[1726223358281,3.3667,133.66,133.63,2003.3672]
[1726223358888,14.8864,133.67,133.63,2003.3672]
[1726223360782,3.3664,133.67,133.64,14.887]
[1726223360975,7.0714607,133.68,133.65,11.52]
[1726223362374,7.0714607,133.68,133.64,11.52]
[1726223362878,11.52,133.66,133.63,2000.0]
[1726223363076,11.52,133.65,133.63,2000.0]
[1726223363386,14.887,133.64,133.63,2000.0]
[1726223365076,11.52,133.64,133.63,2000.0]
[1726223365883,14.887,133.64,133.63,2000.0]
[1726223372188,14.887,133.64,133.63,1995.65]
[1726223372486,14.887,133.64,133.63,1840.39083848]
[1726223372680,18.58710182,133.64,133.63,1838.21583848]
[1726223373189,14.887,133.64,133.63,1832.38083848]
[1726223373891,14.887,133.64,133.63,1828.72083848]
[1726223374081,14.887,133.64,133.63,1826.54573848]
[1726223374278,18.65881545,133.64,133.63,1826.54573848]
[1726223375182,18.65881545,133.64,133.63,1753.35573848]
[1726223375576,14.887,133.64,133.63,1749.61573848]
[1726223375776,14.887,133.64,133.63,1733.28573848]
[1726223376181,18.65244857,133.64,133.63,1733.28573848]
[1726223376778,14.887,133.64,133.63,1730.28573848]
[1726223377079,18.67033454,133.64,133.63,1730.28573848]
[1726223377874,18.67033454,133.64,133.63,1657.09573848]
[1726223378681,18.67033454,133.64,133.63,1640.76573848]
[1726223378989,14.887,133.64,133.63,1619.72573849]
[1726223379194,18.66396718,133.64,133.63,1619.72573849]
[1726223379991,37.407,133.64,133.63,1616.72573849]
[1726223380382,18.60881254,133.64,133.63,1616.72573849]
[1726223380693,14.887,133.64,133.63,1613.04573849]
[1726223380893,18.60993627,133.64,133.63,1613.04573849]
[1726223381093,18.60993627,133.64,133.63,1554.19573849]
[1726223381495,18.60993627,133.64,133.63,1523.52573849]
[1726223383996,18.60993627,133.64,133.63,1464.67573849]
[1726223384801,18.60993627,133.64,133.63,1434.00573849]
[1726223387000,18.60993627,133.64,133.63,1375.15573849]
[1726223387591,18.60993627,133.64,133.63,1344.48573849]
[1726223388400,7.08993627,133.64,133.63,1344.48573849]
[1726223388895,18.60993627,133.64,133.63,1344.48573849]
[1726223390194,7.08993627,133.64,133.63,1344.48573849]
[1726223390503,18.60993627,133.64,133.63,1344.48573849]
[1726223391694,7.08993627,133.64,133.63,1344.48573849]
[1726223391898,18.60993627,133.64,133.63,1344.48573849]
[1726223393500,18.60993627,133.64,133.63,344.4857384]
[1726223401310,22.52,133.71,133.63,344.4857384]
[1726223401501,11.52,133.64,133.63,344.4857384]
[1726223401700,7.1694,133.64,133.63,344.4857384]
[1726223402006,14.8869,133.65,133.63,344.4857384]
[1726223402308,3.80140272,133.64,133.63,344.4857384]
[1726223402506,59.39641619,133.72,133.63,344.4857384]
[1726223402710,11.52,133.66,133.63,344.4857384]
[1726223402906,15.23058347,133.66,133.63,344.4857384]
[1726223403109,11.52,133.66,133.63,344.4857384]
[1726223403704,15.20549172,133.66,133.63,344.4857384]
[1726223404306,11.52,133.66,133.63,344.4857384]
[1726223405999,7.18558957,133.67,133.63,344.4857384]
[1726223406000,14.8869,133.65,133.63,344.4857384]
[1726223406811,11.52,133.65,133.63,344.4857384]
[1726223407514,14.8869,133.65,133.63,344.4857384]
[1726223408011,7.17567109,133.66,133.63,344.4857384]
[1726223408213,22.52,133.72,133.63,345.8575384]
[1726223408514,11.52,133.67,133.63,347.1676384]
[1726223408815,11.52,133.67,133.63,350.5348384]
[1726223409000,11.52,133.67,133.63,347.1676384]
[1726223409206,14.8864,133.67,133.63,347.1676384]
[1726223409807,3.3666,133.66,133.63,347.1676384]
[1726223411618,11.52,133.65,133.63,347.1676384]
[1726223413709,14.8868,133.65,133.63,347.1676384]
[1726223416319,3.3666,133.66,133.63,347.1676384]
[1726223418921,14.8864,133.67,133.63,347.1676384]
[1726223424616,3.3665,133.66,133.63,347.1676384]
[1726223430839,14.8864,133.67,133.63,347.1676384]
[1726223433339,3.3663,133.67,133.63,350.5349384]
[1726223433532,14.8863,133.67,133.63,350.5349384]
[1726223434843,3.3663,133.67,133.63,350.5349384]
[1726223435036,14.8863,133.67,133.63,350.5349384]
[1726223435236,14.8863,133.67,133.63,362.0549384]
[1726223437639,3.3662,133.68,133.63,362.0549384]
[1726223437837,11.52,133.67,133.63,362.0549384]
[1726223438143,11.52,133.67,133.64,3.367]
[1726223439340,14.8862,133.68,133.63,362.0548384]
[1726223440239,3.3659,133.69,133.64,11.52]
[1726223440537,2.642,133.75,133.68,11.52]
[1726223440734,7.44168118,133.79,133.69,12.8758]
[1726223440735,3.3648,133.73,133.69,12.8758]
[1726223440934,7.04332432,133.73,133.69,12.8758]
[1726223442434,157.73467143,133.78,133.69,12.8758]
[1726223442630,11.52,133.74,133.69,16.2414]
[1726223443131,14.8846,133.74,133.69,16.2414]
[1726223444038,11.52,133.74,133.7,3.3655]
[1726223446548,14.8845,133.74,133.7,3.3655]
[1726223446947,14.8845,133.74,133.7,14.8855]
[1726223447249,14.8843,133.75,133.7,14.8855]
[1726223447550,14.8843,133.75,133.7,17.5817]
[1726223448049,14.8843,133.75,133.71,11.52]
[1726223448246,3.3641,133.76,133.72,11.52]
[1726223449350,11.52,133.77,133.72,14.8849]
[1726223449351,14.8839,133.77,133.72,14.8849]
[1726223449848,3.3639,133.77,133.72,14.8849]
[1726223450046,14.8836,133.78,133.73,14.8847]
[1726223450548,3.3638,133.77,133.73,14.8847]
[1726223450754,3.3638,133.77,133.73,11.52]
[1726223451846,3.3638,133.77,133.72,3.3649]
[1726223452053,3.3638,133.77,133.72,14.8849]
[1726223453852,3.80945247,133.8,133.73,3.3647]
[1726223454053,11.52,133.78,133.73,14.8847]
[1726223454242,3.3641,133.76,133.71,3.3651]
[1726223454445,3.66769664,133.75,133.72,11.52]
[1726223455147,3.3641,133.76,133.72,14.885]
[1726223458556,7.0428456,133.75,133.71,3.3652]
[1726223458758,3.3643,133.75,133.73,11.52]
[1726223459349,7.13936394,133.75,133.73,11.52]
[1726223461250,11.52,133.79,133.74,11.52]
[1726223462757,3.3636,133.78,133.74,11.52]
[1726223465454,3.3636,133.78,133.75,11.52]
[1726223467456,3.3638,133.77,133.75,11.52]
[1726223470061,3.3636,133.78,133.75,11.52]
[1726223472058,157.69422582,133.81,133.77,11.52]
[1726223472252,157.69422582,133.81,133.78,11.52]
[1726223473862,161.05702582,133.81,133.78,11.52]
[1726223475357,11.52,133.81,133.75,2.7135]
[1726223475557,11.52,133.8,133.75,14.2335]
[1726223475751,3.3634,133.79,133.75,14.2335]
[1726223476061,3.78693798,133.78,133.75,14.2335]
[1726223477457,3.78693798,133.78,133.75,12.9115]
[1726223477660,7.15043798,133.78,133.75,12.9115]
[1726223477849,3.3635,133.78,133.75,12.9115]
[1726223478254,3.3635,133.78,133.75,1.3915]
[1726223478561,7.0771231,133.78,133.75,12.9115]
[1726223480153,11.52,133.77,133.74,1.4188]
[1726223480955,11.52,133.77,133.73,11.52]
[1726223481461,15.19247699,133.77,133.73,11.52]
[1726223481965,3.3641,133.76,133.73,14.8847]
[1726223482160,3.3641,133.76,133.73,11.52]
[1726223484359,11.52,133.76,133.71,3.3652]
[1726223484663,11.52,133.76,133.71,14.8852]
[1726223484865,3.3644,133.75,133.71,14.8852]
[1726223485761,3.3644,133.75,133.71,3.3652]
[1726223485961,3.3649,133.73,133.7,11.52]
[1726223486866,11.52,133.72,133.68,1.4261]
[1726223487265,3.3654,133.71,133.68,1.4261]
[1726223488565,3.3655,133.7,133.68,1.4261]
[1726223488768,3.3655,133.7,133.66,11.52]
[1726223488769,11.52,133.7,133.66,11.52]
[1726223489171,15.34772465,133.7,133.66,11.52]
[1726223489665,3.3662,133.68,133.66,11.52]
[1726223489870,3.3662,133.68,133.65,12.8538]
[1726223490867,3.3662,133.68,133.65,16.2206]
[1726223491166,3.3659,133.69,133.66,11.52]
[1726223491770,3.3659,133.69,133.66,14.8865]
[1726223491961,3.3661,133.68,133.66,11.52]
[1726223492465,3.3661,133.68,133.65,12.8538]
[1726223492865,3.3661,133.68,133.65,16.2205]
[1726223496565,3.3663,133.67,133.65,1.3338]
[1726223497065,11.52,133.7,133.65,1.3338]
[1726223497270,3.3663,133.67,133.65,4.7006]
[1726223498473,3.3662,133.68,133.65,4.7006]
[1726223499667,14.8862,133.68,133.65,1.3338]
[1726223500469,11.52,133.68,133.65,1.3338]
[1726223501178,14.8862,133.68,133.65,1.3338]
[1726223503871,3.3662,133.68,133.65,12.8538]
[1726223504077,3.3662,133.68,133.65,1.3338]
[1726223505672,3.3662,133.68,133.65,4.7006]
[1726223507679,3.3659,133.69,133.66,11.52]
[1726223508272,14.8859,133.69,133.65,16.2206]
[1726223508980,11.52,133.68,133.65,1.3338]
[1726223509378,11.52,133.67,133.65,1.3338]
[1726223509582,14.8864,133.67,133.63,347.8529384]
[1726223510175,11.52,133.65,133.63,344.4857384]
[1726223510678,14.8869,133.65,133.63,344.4857384]
[1726223511181,11.52,133.65,133.63,344.4857384]
[1726223511969,11.52,133.65,133.63,347.8530384]
[1726223513280,11.52,133.65,133.63,344.4857384]
[1726223513968,14.887,133.65,133.63,344.4857384]
[1726223514971,11.52,133.65,133.63,344.4857384]
[1726223516383,14.8869,133.65,133.63,344.4857384]
[1726223516890,11.52,133.65,133.63,344.4857384]
[1726223518883,11.52,133.64,133.63,344.4857384]
[1726223519085,3.80522075,133.67,133.66,329.5991384]
[1726223519288,11.52,133.67,133.66,329.5991384]
[1726223519591,15.27599161,133.67,133.66,329.5991384]
[1726223519795,18.64229161,133.67,133.66,329.5991384]
[1726223520484,14.8863,133.67,133.66,325.09852187]
[1726223520991,18.56739646,133.67,133.66,325.09852187]
[1726223521180,7.04739646,133.67,133.66,325.09852187]
[1726223521384,18.56739646,133.67,133.66,325.09852187]
[1726223521693,14.8863,133.67,133.66,321.49852187]
[1726223521890,18.70894046,133.67,133.66,248.30852187]
[1726223523991,14.8863,133.67,133.66,245.30852187]
[1726223524591,18.57489155,133.67,133.66,172.11852187]
[1726223527484,18.57489155,133.67,133.66,98.92852187]
[1726223528491,18.61139363,133.67,133.66,95.09852187]
[1726223528890,18.61139363,133.67,133.66,78.76852187]
[1726223530397,14.8863,133.67,133.66,18.10852187]
[1726223531093,18.69116891,133.67,133.66,18.10852187]
[1726223531598,18.69116891,133.67,133.66,1.77852187]
[1726223533400,3.3672,133.64,133.59,4.7574]